[Event "Late Titled Tuesday Blitz February 8 2022"]
[White "Zhigalko, Sergei"]
[Black "Sevian, Samuel"]
[WhiteFideId "13502956"]
[BlackFideId "2040506"]
[WhiteElo "2662"]
[BlackElo "2698"]
[Result "0-1"]
[Round "10"]
[TimeControl "180+1"]
[Date "2022.02.08"]
[WhiteClock "0:00:01"]
[BlackClock "0:00:20"]

1. e4 {[%clk 0:03:00]}  e5 {[%clk 0:03:00]} 2. Nf3 {[%clk 0:03:00]}  Nf6 {[%clk 0:03:01]} 3. d4 {[%clk 0:02:59]}  Nxe4 {[%clk 0:03:00]} 4. Bd3 {[%clk 0:03:00]}  Nc6 {[%clk 0:03:01]} 5. d5 {[%clk 0:02:56]}  Nc5 {[%clk 0:03:01]} 6. dxc6 {[%clk 0:02:57]}  e4 {[%clk 0:03:01]} 7. cxb7 {[%clk 0:02:56]}  Bxb7 {[%clk 0:03:00]} 8. Be2 {[%clk 0:02:57]}  exf3 {[%clk 0:02:58]} 9. Bxf3 {[%clk 0:02:57]}  Bxf3 {[%clk 0:02:57]} 10. Qxf3 {[%clk 0:02:58]}  Be7 {[%clk 0:02:57]} 11. O-O {[%clk 0:02:58]}  c6 {[%clk 0:02:57]} 12. Rd1 {[%clk 0:02:52]}  O-O {[%clk 0:02:57]} 13. Be3 {[%clk 0:02:48]}  Ne6 {[%clk 0:02:52]} 14. Nd2 {[%clk 0:02:34]}  Rb8 {[%clk 0:02:47]} 15. Nb3 {[%clk 0:02:17]}  a5 {[%clk 0:02:46]} 16. a4 {[%clk 0:02:17]}  d5 {[%clk 0:02:45]} 17. h3 {[%clk 0:02:02]}  Bd6 {[%clk 0:02:40]} 18. Bd2 {[%clk 0:01:55]}  Bc7 {[%clk 0:02:38]} 19. Bc3 {[%clk 0:01:43]}  Ng5 {[%clk 0:02:36]} 20. Qg4 {[%clk 0:01:42]}  f5 {[%clk 0:02:35]} 21. Qh5 {[%clk 0:01:33]}  Ne4 {[%clk 0:02:32]} 22. Nd4 {[%clk 0:01:27]}  Qd6 {[%clk 0:02:29]} 23. Nf3 {[%clk 0:01:26]}  Bb6 {[%clk 0:02:18]} 24. Nd4 {[%clk 0:01:11]}  g6 {[%clk 0:02:14]} 25. Qf3 {[%clk 0:01:10]}  Rfe8 {[%clk 0:02:14]} 26. Re1 {[%clk 0:01:02]}  Bc7 {[%clk 0:02:13]} 27. g3 {[%clk 0:01:01]}  Re7 {[%clk 0:02:12]} 28. Rad1 {[%clk 0:00:57]}  Rbe8 {[%clk 0:02:12]} 29. Nb3 {[%clk 0:00:47]}  c5 {[%clk 0:01:56]} 30. Kg2 {[%clk 0:00:30]}  d4 {[%clk 0:01:35]} 31. Bxa5 {[%clk 0:00:29]}  Ng5 {[%clk 0:01:30]} 32. Rxe7 {[%clk 0:00:20]}  Nxf3 {[%clk 0:01:17]} 33. Rxe8+ {[%clk 0:00:20]}  Kf7 {[%clk 0:01:17]} 34. Bxc7 {[%clk 0:00:02]}  Qxc7 {[%clk 0:01:09]} 35. Rh8 {[%clk 0:00:03]}  Qc6 {[%clk 0:01:06]} 36. Rxh7+ {[%clk 0:00:02]}  Kg8 {[%clk 0:01:06]} 37. Ra7 {[%clk 0:00:02]}  Nh4+ {[%clk 0:01:03]} 38. Kf1 {[%clk 0:00:02]}  Qg2+ {[%clk 0:00:37]} 39. Ke2 {[%clk 0:00:03]}  Qe4+ {[%clk 0:00:21]} 40. Kd2 {[%clk 0:00:02]}  c4 {[%clk 0:00:21]} 41. gxh4 {[%clk 0:00:02]}  cxb3 {[%clk 0:00:21]} 42. cxb3 {[%clk 0:00:02]}  d3 {[%clk 0:00:21]} 43. Re1 {[%clk 0:00:01]}  Qb4+ {[%clk 0:00:21]} 44. Kxd3 {[%clk 0:00:01]}  Qxe1 {[%clk 0:00:21]} 45. Ra8+ {[%clk 0:00:01]}  Kg7 {[%clk 0:00:21]} 46. Re8 {[%clk 0:00:01]}  Qxe8 {[%clk 0:00:20]} 0-1


[Site "https://www.chess.com"]

[Event "Late Titled Tuesday Blitz February 8 2022"]
[White "Zhurbinsky, David"]
[Black "Garcia Martin, Marta"]
[WhiteFideId "2072904"]
[BlackFideId "32084030"]
[WhiteElo "2564"]
[BlackElo "2102"]
[Result "0-1"]
[Round "10"]
[TimeControl "180+1"]
[Date "2022.02.08"]
[WhiteClock "0:00:09"]
[BlackClock "0:00:13"]

1. e4 {[%clk 0:03:00]}  b6 {[%clk 0:02:57]} 2. d4 {[%clk 0:03:00]}  Bb7 {[%clk 0:02:54]} 3. Nc3 {[%clk 0:03:00]}  e6 {[%clk 0:02:54]} 4. Nf3 {[%clk 0:03:00]}  Bb4 {[%clk 0:02:54]} 5. Bd3 {[%clk 0:03:00]}  Nf6 {[%clk 0:02:54]} 6. Qe2 {[%clk 0:02:56]}  d5 {[%clk 0:02:54]} 7. e5 {[%clk 0:02:55]}  Ne4 {[%clk 0:02:54]} 8. Bd2 {[%clk 0:02:50]}  Bxc3 {[%clk 0:02:55]} 9. bxc3 {[%clk 0:02:50]}  Nc6 {[%clk 0:02:54]} 10. Bxe4 {[%clk 0:02:43]}  dxe4 {[%clk 0:02:55]} 11. Qxe4 {[%clk 0:02:43]}  Na5 {[%clk 0:02:53]} 12. Qd3 {[%clk 0:02:30]}  Qd5 {[%clk 0:02:51]} 13. O-O {[%clk 0:02:18]}  O-O {[%clk 0:02:44]} 14. Nh4 {[%clk 0:02:05]}  f6 {[%clk 0:02:30]} 15. f4 {[%clk 0:02:00]}  Nc4 {[%clk 0:02:26]} 16. Rf3 {[%clk 0:01:46]}  fxe5 {[%clk 0:02:05]} 17. fxe5 {[%clk 0:01:46]}  Rxf3 {[%clk 0:01:58]} 18. Nxf3 {[%clk 0:01:47]}  Rf8 {[%clk 0:01:59]} 19. Rf1 {[%clk 0:01:41]}  Nxd2 {[%clk 0:01:40]} 20. Qxd2 {[%clk 0:01:41]}  Qxa2 {[%clk 0:01:40]} 21. h4 {[%clk 0:01:27]}  h6 {[%clk 0:01:26]} 22. h5 {[%clk 0:01:14]}  a5 {[%clk 0:01:14]} 23. Nh4 {[%clk 0:01:11]}  Rxf1+ {[%clk 0:01:12]} 24. Kxf1 {[%clk 0:01:12]}  a4 {[%clk 0:01:05]} 25. Ng6 {[%clk 0:01:06]}  a3 {[%clk 0:01:03]} 26. Kg1 {[%clk 0:00:20]}  Qb1+ {[%clk 0:00:48]} 27. Kh2 {[%clk 0:00:21]}  Qf1 {[%clk 0:00:34]} 28. d5 {[%clk 0:00:21]}  a2 {[%clk 0:00:26]} 29. Ne7+ {[%clk 0:00:14]}  Kf8 {[%clk 0:00:24]} 30. Ng6+ {[%clk 0:00:10]}  Ke8 {[%clk 0:00:20]} 31. dxe6 {[%clk 0:00:01]}  Qxg2+ {[%clk 0:00:20]} 32. Qxg2 {[%clk 0:00:02]}  Bxg2 {[%clk 0:00:20]} 33. Kxg2 {[%clk 0:00:03]}  a1=Q {[%clk 0:00:21]} 34. Kf3 {[%clk 0:00:04]}  Qxc3+ {[%clk 0:00:21]} 35. Ke4 {[%clk 0:00:04]}  Qxc2+ {[%clk 0:00:21]} 36. Kd5 {[%clk 0:00:05]}  Qc5+ {[%clk 0:00:21]} 37. Ke4 {[%clk 0:00:06]}  b5 {[%clk 0:00:20]} 38. Kf5 {[%clk 0:00:07]}  Qf2+ {[%clk 0:00:19]} 39. Ke4 {[%clk 0:00:07]}  b4 {[%clk 0:00:19]} 40. Nf4 {[%clk 0:00:07]}  b3 {[%clk 0:00:16]} 41. Kf5 {[%clk 0:00:08]}  b2 {[%clk 0:00:15]} 42. e7 {[%clk 0:00:08]}  b1=Q+ {[%clk 0:00:15]} 43. Ke6 {[%clk 0:00:09]}  Qbb6+ {[%clk 0:00:13]} 44. Kf5 {[%clk 0:00:09]}  Qbe3 {[%clk 0:00:12]} 45. Ke6 {[%clk 0:00:09]}  Qexf4 {[%clk 0:00:12]} 46. Kd5 {[%clk 0:00:09]}  Q2d4+ {[%clk 0:00:12]} 47. Kc6 {[%clk 0:00:09]}  Qb6+ {[%clk 0:00:12]} 48. Kd5 {[%clk 0:00:09]}  Qfd4# {[%clk 0:00:13]} 0-1


[Site "https://www.chess.com"]

[Event "Late Titled Tuesday Blitz February 8 2022"]
[White "Avazkhonov, Alikhon"]
[Black "Chabris, Christopher"]
[WhiteFideId "14208504"]
[BlackFideId "2005263"]
[WhiteElo "1739"]
[BlackElo "2293"]
[Result "1-0"]
[Round "11"]
[TimeControl "180+1"]
[Date "2022.02.09"]
[WhiteClock "0:00:03"]
[BlackClock "0:00:02"]

1. f4 {[%clk 0:03:00]}  d5 {[%clk 0:02:58]} 2. Nf3 {[%clk 0:03:00]}  Bg4 {[%clk 0:02:58]} 3. e3 {[%clk 0:02:59]}  Nf6 {[%clk 0:02:52]} 4. h3 {[%clk 0:02:58]}  Bxf3 {[%clk 0:02:45]} 5. Qxf3 {[%clk 0:02:59]}  c6 {[%clk 0:02:40]} 6. d4 {[%clk 0:02:58]}  Nbd7 {[%clk 0:02:38]} 7. Bd3 {[%clk 0:02:58]}  c5 {[%clk 0:02:35]} 8. c3 {[%clk 0:02:57]}  a6 {[%clk 0:02:34]} 9. O-O {[%clk 0:02:57]}  Qc7 {[%clk 0:02:26]} 10. Nd2 {[%clk 0:02:54]}  e6 {[%clk 0:02:26]} 11. g4 {[%clk 0:02:50]}  O-O-O {[%clk 0:02:23]} 12. Rf2 {[%clk 0:02:40]}  Bd6 {[%clk 0:02:22]} 13. Nf1 {[%clk 0:02:35]}  Qc6 {[%clk 0:02:16]} 14. Ng3 {[%clk 0:02:32]}  g6 {[%clk 0:02:05]} 15. g5 {[%clk 0:02:29]}  Ng8 {[%clk 0:02:03]} 16. h4 {[%clk 0:02:24]}  h6 {[%clk 0:02:00]} 17. Bd2 {[%clk 0:02:23]}  Ne7 {[%clk 0:02:00]} 18. Kg2 {[%clk 0:02:20]}  f6 {[%clk 0:01:56]} 19. Qg4 {[%clk 0:02:06]}  Bc7 {[%clk 0:01:33]} 20. b4 {[%clk 0:01:52]}  c4 {[%clk 0:01:29]} 21. Bc2 {[%clk 0:01:48]}  Kb8 {[%clk 0:01:21]} 22. a4 {[%clk 0:01:47]}  hxg5 {[%clk 0:01:12]} 23. hxg5 {[%clk 0:01:43]}  fxg5 {[%clk 0:01:07]} 24. fxg5 {[%clk 0:01:34]}  e5 {[%clk 0:01:06]} 25. a5 {[%clk 0:01:30]}  exd4 {[%clk 0:01:02]} 26. exd4 {[%clk 0:01:28]}  Rhf8 {[%clk 0:00:56]} 27. Raf1 {[%clk 0:01:18]}  Rxf2+ {[%clk 0:00:53]} 28. Rxf2 {[%clk 0:01:19]}  Rf8 {[%clk 0:00:48]} 29. Rxf8+ {[%clk 0:01:04]}  Nxf8 {[%clk 0:00:48]} 30. Bf4 {[%clk 0:00:58]}  Ne6 {[%clk 0:00:27]} 31. Bxc7+ {[%clk 0:00:45]}  Nxc7 {[%clk 0:00:28]} 32. Ne2 {[%clk 0:00:44]}  Ne6 {[%clk 0:00:25]} 33. Nf4 {[%clk 0:00:37]}  Nxf4+ {[%clk 0:00:24]} 34. Qxf4+ {[%clk 0:00:36]}  Qc7 {[%clk 0:00:22]} 35. Qf6 {[%clk 0:00:23]}  Qd7 {[%clk 0:00:20]} 36. Kg3 {[%clk 0:00:20]}  Qc7+ {[%clk 0:00:16]} 37. Qf4 {[%clk 0:00:11]}  Kc8 {[%clk 0:00:09]} 38. Ba4 {[%clk 0:00:06]}  Nf5+ {[%clk 0:00:05]} 39. Kf3 {[%clk 0:00:04]}  Qe7 {[%clk 0:00:05]} 40. Bc2 {[%clk 0:00:02]}  Qe1 {[%clk 0:00:02]} 41. Bxf5+ {[%clk 0:00:03]}  gxf5 {[%clk 0:00:02]} 42. Qxf5+ {[%clk 0:00:03]} 1-0


[Site "https://www.chess.com"]

[Event "Late Titled Tuesday Blitz February 8 2022"]
[White "Borisova, Ekaterina"]
[Black "Miszler, Levente"]
[WhiteFideId "34124184"]
[BlackFideId "763276"]
[WhiteElo "2034"]
[BlackElo "1966"]
[Result "1-0"]
[Round "11"]
[TimeControl "180+1"]
[Date "2022.02.09"]
[WhiteClock "0:00:10"]
[BlackClock "0:00:09"]

1. d4 {[%clk 0:03:00]}  d5 {[%clk 0:02:54]} 2. c4 {[%clk 0:03:00]}  c6 {[%clk 0:02:53]} 3. cxd5 {[%clk 0:02:59]}  cxd5 {[%clk 0:02:53]} 4. Bf4 {[%clk 0:02:59]}  Nc6 {[%clk 0:02:47]} 5. e3 {[%clk 0:02:59]}  Bf5 {[%clk 0:02:46]} 6. Nc3 {[%clk 0:02:59]}  a6 {[%clk 0:02:44]} 7. Rc1 {[%clk 0:02:59]}  e6 {[%clk 0:02:44]} 8. Nf3 {[%clk 0:02:47]}  Bd6 {[%clk 0:02:42]} 9. Bg3 {[%clk 0:02:38]}  Bxg3 {[%clk 0:02:38]} 10. hxg3 {[%clk 0:02:38]}  Nf6 {[%clk 0:02:39]} 11. Bd3 {[%clk 0:02:34]}  Bxd3 {[%clk 0:02:32]} 12. Qxd3 {[%clk 0:02:34]}  Qa5 {[%clk 0:02:31]} 13. a3 {[%clk 0:02:33]}  h6 {[%clk 0:02:24]} 14. Kf1 {[%clk 0:02:19]}  Rc8 {[%clk 0:02:13]} 15. Kg1 {[%clk 0:02:12]}  Ne7 {[%clk 0:02:02]} 16. Ne5 {[%clk 0:02:06]}  Nf5 {[%clk 0:02:01]} 17. g4 {[%clk 0:02:04]}  Nd6 {[%clk 0:01:58]} 18. g5 {[%clk 0:02:04]}  Nfe4 {[%clk 0:01:58]} 19. gxh6 {[%clk 0:01:59]}  gxh6 {[%clk 0:01:54]} 20. Rh5 {[%clk 0:01:49]}  Nxc3 {[%clk 0:01:50]} 21. Rxc3 {[%clk 0:01:47]}  Rxc3 {[%clk 0:01:49]} 22. Qxc3 {[%clk 0:01:42]}  Qxc3 {[%clk 0:01:44]} 23. bxc3 {[%clk 0:01:42]}  Nb5 {[%clk 0:01:40]} 24. c4 {[%clk 0:01:37]}  Nxa3 {[%clk 0:01:40]} 25. cxd5 {[%clk 0:01:37]}  exd5 {[%clk 0:01:41]} 26. Nd3 {[%clk 0:01:35]}  Ke7 {[%clk 0:01:35]} 27. Rxd5 {[%clk 0:01:34]}  Rc8 {[%clk 0:01:33]} 28. Nc5 {[%clk 0:01:32]}  Rc7 {[%clk 0:01:29]} 29. g4 {[%clk 0:01:29]}  Nc4 {[%clk 0:01:24]} 30. Rh5 {[%clk 0:01:28]}  a5 {[%clk 0:01:22]} 31. Rxh6 {[%clk 0:01:26]}  b6 {[%clk 0:01:23]} 32. Nd3 {[%clk 0:01:22]}  a4 {[%clk 0:01:20]} 33. Kg2 {[%clk 0:01:16]}  a3 {[%clk 0:00:58]} 34. Nb4 {[%clk 0:01:15]}  Rb7 {[%clk 0:00:47]} 35. d5 {[%clk 0:01:14]}  Kd7 {[%clk 0:00:40]} 36. e4 {[%clk 0:01:09]}  Ra7 {[%clk 0:00:38]} 37. Na2 {[%clk 0:00:56]}  Ra5 {[%clk 0:00:37]} 38. Rc6 {[%clk 0:00:52]}  b5 {[%clk 0:00:25]} 39. f4 {[%clk 0:00:46]}  Ra4 {[%clk 0:00:21]} 40. e5 {[%clk 0:00:41]}  Ne3+ {[%clk 0:00:20]} 41. Kf3 {[%clk 0:00:39]}  Nxd5 {[%clk 0:00:21]} 42. Rd6+ {[%clk 0:00:38]}  Kc7 {[%clk 0:00:17]} 43. Rxd5 {[%clk 0:00:39]}  Kc6 {[%clk 0:00:16]} 44. Rd3 {[%clk 0:00:35]}  b4 {[%clk 0:00:15]} 45. f5 {[%clk 0:00:34]}  Kb5 {[%clk 0:00:15]} 46. Nc1 {[%clk 0:00:11]}  a2 {[%clk 0:00:11]} 47. Nxa2 {[%clk 0:00:10]}  Rxa2 {[%clk 0:00:11]} 48. Rd7 {[%clk 0:00:11]}  b3 {[%clk 0:00:07]} 49. Rb7+ {[%clk 0:00:10]}  Kc4 {[%clk 0:00:07]} 50. Kf4 {[%clk 0:00:11]}  b2 {[%clk 0:00:07]} 51. Kg5 {[%clk 0:00:09]}  Kc3 {[%clk 0:00:06]} 52. Kf6 {[%clk 0:00:08]}  Ra4 {[%clk 0:00:07]} 53. Rxb2 {[%clk 0:00:07]}  Kxb2 {[%clk 0:00:07]} 54. Kxf7 {[%clk 0:00:07]}  Rxg4 {[%clk 0:00:07]} 55. e6 {[%clk 0:00:08]}  Rf4 {[%clk 0:00:07]} 56. f6 {[%clk 0:00:08]}  Rh4 {[%clk 0:00:05]} 57. e7 {[%clk 0:00:08]}  Rh7+ {[%clk 0:00:06]} 58. Ke6 {[%clk 0:00:08]}  Rh3 {[%clk 0:00:07]} 59. f7 {[%clk 0:00:08]}  Re3+ {[%clk 0:00:08]} 60. Kd7 {[%clk 0:00:08]}  Kc3 {[%clk 0:00:08]} 61. f8=Q {[%clk 0:00:08]}  Kd2 {[%clk 0:00:09]} 62. Ke8 {[%clk 0:00:09]}  Kd3 {[%clk 0:00:09]} 63. Qf7 {[%clk 0:00:10]}  Re4 {[%clk 0:00:09]} 64. Kf8 {[%clk 0:00:11]}  Rd4 {[%clk 0:00:10]} 65. e8=Q {[%clk 0:00:11]}  Kc3 {[%clk 0:00:09]} 66. Qf2 {[%clk 0:00:10]}  Rd3 {[%clk 0:00:10]} 67. Qc6+ {[%clk 0:00:10]}  Kb3 {[%clk 0:00:09]} 68. Qfc2+ {[%clk 0:00:10]}  Ka3 {[%clk 0:00:09]} 69. Q6c5# {[%clk 0:00:10]} 1-0


[Site "https://www.chess.com"]

[Event "Late Titled Tuesday Blitz February 8 2022"]
[White "Daggupati, Balaji"]
[Black "Jobava, Baadur"]
[WhiteFideId "2090759"]
[BlackFideId "13601520"]
[WhiteElo "2746"]
[BlackElo "2617"]
[Result "0-1"]
[Round "11"]
[TimeControl "180+1"]
[Date "2022.02.08"]
[WhiteClock "0:00:46"]
[BlackClock "0:02:27"]

1. e4 {[%clk 0:03:00]}  e5 {[%clk 0:02:59]} 2. Nf3 {[%clk 0:03:01]}  Nf6 {[%clk 0:03:00]} 3. Nc3 {[%clk 0:02:58]}  d5 {[%clk 0:02:58]} 4. exd5 {[%clk 0:02:56]}  Bd6 {[%clk 0:02:58]} 5. d3 {[%clk 0:02:50]}  O-O {[%clk 0:02:58]} 6. Be2 {[%clk 0:02:51]}  c6 {[%clk 0:02:58]} 7. dxc6 {[%clk 0:02:50]}  Nxc6 {[%clk 0:02:58]} 8. O-O {[%clk 0:02:51]}  Re8 {[%clk 0:02:59]} 9. Bg5 {[%clk 0:02:50]}  Kh8 {[%clk 0:02:53]} 10. Nd2 {[%clk 0:02:46]}  Nd4 {[%clk 0:02:50]} 11. Bf3 {[%clk 0:02:46]}  h6 {[%clk 0:02:48]} 12. Bxf6 {[%clk 0:02:39]}  gxf6 {[%clk 0:02:49]} 13. Bd5 {[%clk 0:02:36]}  Rg8 {[%clk 0:02:44]} 14. Qh5 {[%clk 0:02:33]}  Bf8 {[%clk 0:02:44]} 15. Nce4 {[%clk 0:02:17]}  Qxd5 {[%clk 0:02:41]} 16. c3 {[%clk 0:02:00]}  Bg4 {[%clk 0:02:40]} 17. Qh4 {[%clk 0:01:44]}  Nf5 {[%clk 0:02:39]} 18. Qxf6+ {[%clk 0:01:13]}  Bg7 {[%clk 0:02:38]} 19. c4 {[%clk 0:01:12]}  Qd7 {[%clk 0:02:29]} 20. Nc5 {[%clk 0:00:55]}  Qe8 {[%clk 0:02:28]} 21. Nce4 {[%clk 0:00:45]}  Bxf6 {[%clk 0:02:27]} 22. Nxf6 {[%clk 0:00:46]} 0-1


[Site "https://www.chess.com"]

[Event "Late Titled Tuesday Blitz February 8 2022"]
[White "Demchenko, Anton"]
[Black "Ozen, Deniz"]
[WhiteFideId "4160258"]
[BlackFideId "6349196"]
[WhiteElo "2539"]
[BlackElo "2326"]
[Result "1/2-1/2"]
[Round "11"]
[TimeControl "180+1"]
[Date "2022.02.08"]
[WhiteClock "0:00:06"]
[BlackClock "0:00:45"]

1. e4 {[%clk 0:03:00]}  e5 {[%clk 0:03:00]} 2. Nf3 {[%clk 0:02:59]}  Nf6 {[%clk 0:03:01]} 3. Nxe5 {[%clk 0:02:58]}  d5 {[%clk 0:03:01]} 4. exd5 {[%clk 0:02:57]}  Qxd5 {[%clk 0:03:02]} 5. d4 {[%clk 0:02:51]}  Nc6 {[%clk 0:03:02]} 6. Nc3 {[%clk 0:02:42]}  Bb4 {[%clk 0:02:54]} 7. Bd2 {[%clk 0:01:33]}  Qxd4 {[%clk 0:02:47]} 8. Nxc6 {[%clk 0:01:33]}  bxc6 {[%clk 0:02:48]} 9. Be2 {[%clk 0:01:31]}  Bf5 {[%clk 0:02:41]} 10. O-O {[%clk 0:01:25]}  O-O {[%clk 0:02:41]} 11. Be3 {[%clk 0:01:14]}  Qxd1 {[%clk 0:02:41]} 12. Bxd1 {[%clk 0:01:08]}  Rfe8 {[%clk 0:02:32]} 13. Bf3 {[%clk 0:01:02]}  Bxc3 {[%clk 0:02:29]} 14. bxc3 {[%clk 0:01:02]}  Be4 {[%clk 0:02:30]} 15. Bxe4 {[%clk 0:00:39]}  Nxe4 {[%clk 0:02:31]} 16. Rfb1 {[%clk 0:00:32]}  Nxc3 {[%clk 0:02:28]} 17. Rb7 {[%clk 0:00:32]}  Nd5 {[%clk 0:02:12]} 18. Bxa7 {[%clk 0:00:31]}  h5 {[%clk 0:02:05]} 19. c4 {[%clk 0:00:29]}  Nb6 {[%clk 0:01:54]} 20. Bxb6 {[%clk 0:00:23]}  Rxa2 {[%clk 0:01:51]} 21. Rf1 {[%clk 0:00:19]}  cxb6 {[%clk 0:01:49]} 22. Rxb6 {[%clk 0:00:20]}  Re6 {[%clk 0:01:45]} 23. Rc1 {[%clk 0:00:12]}  Rc2 {[%clk 0:01:43]} 24. Rbb1 {[%clk 0:00:12]}  Ree2 {[%clk 0:01:43]} 25. Rxc2 {[%clk 0:00:10]}  Rxc2 {[%clk 0:01:44]} 26. g3 {[%clk 0:00:09]}  Rxc4 {[%clk 0:01:44]} 27. Rb7 {[%clk 0:00:07]}  g6 {[%clk 0:01:40]} 28. h4 {[%clk 0:00:08]}  Kg7 {[%clk 0:01:41]} 29. Kg2 {[%clk 0:00:08]}  Rc1 {[%clk 0:01:41]} 30. Kf3 {[%clk 0:00:08]}  c5 {[%clk 0:01:42]} 31. Ke3 {[%clk 0:00:08]}  Rc2 {[%clk 0:01:40]} 32. Rc7 {[%clk 0:00:09]}  c4 {[%clk 0:01:38]} 33. Rc6 {[%clk 0:00:09]}  Rc3+ {[%clk 0:01:34]} 34. Ke4 {[%clk 0:00:07]}  f5+ {[%clk 0:01:27]} 35. Kf4 {[%clk 0:00:07]}  Kh6 {[%clk 0:01:25]} 36. Rc7 {[%clk 0:00:06]}  Rc1 {[%clk 0:01:24]} 37. f3 {[%clk 0:00:06]}  c3 {[%clk 0:01:20]} 38. Rc8 {[%clk 0:00:03]}  Rc2 {[%clk 0:01:07]} 39. Rc7 {[%clk 0:00:02]}  Rc1 {[%clk 0:01:06]} 40. Rc8 {[%clk 0:00:03]}  Kg7 {[%clk 0:01:00]} 41. Kg5 {[%clk 0:00:02]}  c2 {[%clk 0:01:00]} 42. Rc7+ {[%clk 0:00:02]}  Kf8 {[%clk 0:01:00]} 43. Kf4 {[%clk 0:00:02]}  Ke8 {[%clk 0:00:58]} 44. Kg5 {[%clk 0:00:03]}  Kd8 {[%clk 0:00:56]} 45. Rc3 {[%clk 0:00:02]}  Ke7 {[%clk 0:00:55]} 46. Kxg6 {[%clk 0:00:02]}  f4 {[%clk 0:00:54]} 47. g4 {[%clk 0:00:02]}  hxg4 {[%clk 0:00:54]} 48. fxg4 {[%clk 0:00:02]}  f3 {[%clk 0:00:54]} 49. Re3+ {[%clk 0:00:02]}  Kd6 {[%clk 0:00:54]} 50. Rxf3 {[%clk 0:00:02]}  Rg1 {[%clk 0:00:53]} 51. Rc3 {[%clk 0:00:02]}  Rxg4+ {[%clk 0:00:44]} 52. Kh5 {[%clk 0:00:02]}  Rg2 {[%clk 0:00:44]} 53. Kh6 {[%clk 0:00:03]}  Kd5 {[%clk 0:00:44]} 54. h5 {[%clk 0:00:03]}  Kd4 {[%clk 0:00:45]} 55. Rc8 {[%clk 0:00:03]}  Kd3 {[%clk 0:00:44]} 56. Kh7 {[%clk 0:00:03]}  Kd2 {[%clk 0:00:44]} 57. Rxc2+ {[%clk 0:00:03]}  Kxc2 {[%clk 0:00:45]} 58. h6 {[%clk 0:00:04]}  Kd3 {[%clk 0:00:45]} 59. Kh8 {[%clk 0:00:04]}  Ke4 {[%clk 0:00:45]} 60. h7 {[%clk 0:00:05]}  Ra2 {[%clk 0:00:45]} 61. Kg7 {[%clk 0:00:05]}  Ra7+ {[%clk 0:00:45]} 62. Kg8 {[%clk 0:00:05]}  Ra8+ {[%clk 0:00:45]} 63. Kg7 {[%clk 0:00:06]}  Ra7+ {[%clk 0:00:45]} 64. Kg8 {[%clk 0:00:06]}  Rxh7 {[%clk 0:00:45]} 65. Kxh7 {[%clk 0:00:06]} 1/2-1/2


[Site "https://www.chess.com"]

[Event "Late Titled Tuesday Blitz February 8 2022"]
[White "Dias, Joao Batista"]
[Black "Kostiukov, Alexandr"]
[WhiteFideId "2108240"]
[BlackFideId "14108100"]
[WhiteElo "1898"]
[BlackElo "2202"]
[Result "0-1"]
[Round "11"]
[TimeControl "180+1"]
[Date "2022.02.09"]
[WhiteClock "0:01:55"]
[BlackClock "0:01:12"]

1. e4 {[%clk 0:02:53]}  c5 {[%clk 0:02:56]} 2. Nf3 {[%clk 0:02:53]}  g6 {[%clk 0:02:57]} 3. d4 {[%clk 0:02:53]}  cxd4 {[%clk 0:02:57]} 4. Qxd4 {[%clk 0:02:52]}  Nf6 {[%clk 0:02:57]} 5. e5 {[%clk 0:02:53]}  Nc6 {[%clk 0:02:57]} 6. Qh4 {[%clk 0:02:52]}  Nxe5 {[%clk 0:02:57]} 7. Nxe5 {[%clk 0:02:51]}  Qa5+ {[%clk 0:02:57]} 8. Nc3 {[%clk 0:02:49]}  Qxe5+ {[%clk 0:02:57]} 9. Be3 {[%clk 0:02:49]}  Bg7 {[%clk 0:02:57]} 10. O-O-O {[%clk 0:02:48]}  O-O {[%clk 0:02:56]} 11. Bc4 {[%clk 0:02:45]}  d6 {[%clk 0:02:49]} 12. Bh6 {[%clk 0:02:44]}  Bxh6+ {[%clk 0:02:42]} 13. Qxh6 {[%clk 0:02:44]}  Ng4 {[%clk 0:02:39]} 14. Qh4 {[%clk 0:02:42]}  Qf4+ {[%clk 0:02:36]} 15. Kb1 {[%clk 0:02:37]}  Qxc4 {[%clk 0:02:36]} 16. h3 {[%clk 0:02:36]}  Ne5 {[%clk 0:02:35]} 17. f4 {[%clk 0:02:34]}  Be6 {[%clk 0:02:12]} 18. Qxe7 {[%clk 0:02:22]}  Nc6 {[%clk 0:01:53]} 19. Rxd6 {[%clk 0:02:03]}  Qxf4 {[%clk 0:01:46]} 20. Rd3 {[%clk 0:01:55]}  Nxe7 {[%clk 0:01:12]} 0-1


[Site "https://www.chess.com"]